bitfinex/quotes_BTCUSD_20251215
["timestamp","ask_amount","ask_price","bid_price","bid_amount"]
[1765817523700,0.01158198,86341.0,86335.0,0.01158278]
[1765817523701,0.01158198,86341.0,86336.0,0.01158265]
[1765817523916,0.24322622,86340.0,86337.0,0.01158251]
[1765817524127,0.2316147,86351.0,86337.0,0.01158251]
[1765817524128,0.01157916,86362.0,86355.0,0.0115801]
[1765817524336,0.01157916,86362.0,86346.0,0.01158131]
[1765817524337,0.01157863,86366.0,86362.0,0.24316052]
[1765817524545,0.01157863,86366.0,86363.0,0.02440859]
[1765817524750,0.24315516,86365.0,86362.0,0.00161287]
[1765817524961,0.23157899,86364.0,86362.0,0.00161287]
[1765817525176,0.23157899,86364.0,86348.0,0.01158104]
[1765817525177,0.231611,86352.0,86345.0,0.01158144]
[1765817525381,0.01158037,86353.0,86350.0,0.01158077]
[1765817525594,0.23160747,86353.0,86351.0,0.0738277]
[1765817525800,0.01158091,86349.0,86346.0,0.01864]
[1765817526000,0.0115805,86352.0,86346.0,0.02025287]
[1765817526001,0.01158064,86351.0,86346.0,0.02025287]
[1765817526216,0.2431981,86350.0,86346.0,0.26345966]
[1765817526392,0.46305362,86384.0,86352.0,0.0115805]
[1765817526592,0.2316109,86352.0,86350.0,0.00292533]
[1765817526950,0.01158319,86332.0,86327.0,0.01158386]
[1765817527222,0.01158292,86334.0,86330.0,0.01864]
[1765817527223,0.01058434,86331.0,86330.0,0.01864]
[1765817527414,0.01058434,86331.0,86328.0,0.27364878]
[1765817527618,0.01058434,86330.0,86329.0,0.31071104]
[1765817527758,0.01058434,86330.0,86329.0,0.41804391]
[1765817527954,0.01058434,86330.0,86329.0,0.62757233]
[1765817528381,0.00999132,86367.0,86360.0,0.01250476]
[1765817528582,0.23156063,86371.0,86362.0,0.01157916]
[1765817528785,0.2315684,86368.0,86366.0,0.02878]
[1765817529108,0.2315684,86368.0,86356.0,0.02315994]
[1765817529109,0.01157956,86359.0,86351.0,0.02878]
[1765817529310,0.01157997,86356.0,86350.0,0.01864]
[1765817529513,0.0115793,86361.0,86355.0,0.0115801]
[1765817529732,0.01157983,86357.0,86351.0,0.00161287]
[1765817529882,0.01157997,86356.0,86351.0,0.01319351]
[1765817530081,0.07244,86377.0,86360.0,0.01157943]
[1765817530283,0.07244,86397.0,86377.0,0.01157715]
[1765817530504,0.01157675,86380.0,86372.0,0.01157782]
[1765817530712,0.23154512,86377.0,86374.0,0.24312794]
[1765817530923,0.24312344,86376.0,86373.0,0.23155345]
[1765817531137,0.01157675,86380.0,86372.0,0.00444126]
[1765817531138,0.03930581,86387.0,86375.0,0.01157742]
[1765817531287,0.01157702,86378.0,86373.0,0.01157769]
[1765817531500,0.01157702,86378.0,86372.0,0.01601908]
[1765817531501,0.23154555,86377.0,86372.0,0.01601908]
[1765817531702,0.00999132,86383.0,86380.0,0.01157675]
[1765817531888,0.01157581,86387.0,86383.0,0.01157635]
[1765817532258,0.01157581,86387.0,86376.0,0.01157728]
[1765817532259,0.0115793,86361.0,86358.0,0.12042839]
[1765817532396,0.24315294,86366.0,86360.0,0.01157943]
[1765817532596,0.24315294,86366.0,86359.0,0.01864]
[1765817532597,0.2315877,86361.0,86359.0,0.01864]
[1765817532797,0.23158996,86360.0,86358.0,0.00161287]
[1765817533072,0.01157943,86360.0,86354.0,0.0051824]
[1765817533277,0.01157983,86357.0,86355.0,0.03197109]
[1765817533467,0.23159542,86358.0,86355.0,0.231601]
[1765817533733,0.24316921,86360.0,86357.0,0.01157983]
[1765817533938,0.23159901,86357.0,86353.0,0.01158037]
[1765817534057,0.0115797,86358.0,86353.0,0.01158037]
[1765817534058,0.0115797,86358.0,86354.0,0.23160384]
[1765817534273,0.0115797,86358.0,86353.0,0.01158037]
[1765817534509,0.0115797,86358.0,86355.0,0.23160126]
[1765817534762,0.01158198,86341.0,86332.0,0.01158319]
[1765817534949,0.01158251,86337.0,86330.0,0.01158345]
[1765817535150,0.00999132,86342.0,86331.0,0.03017341]
[1765817535353,0.01158171,86343.0,86337.0,0.01158251]
[1765817535527,0.00999132,86342.0,86339.0,0.01158225]
[1765817535734,0.00999132,86342.0,86338.0,0.24322939]
[1765817535931,0.00999132,86342.0,86339.0,0.2432243]
[1765817536132,0.00999132,86342.0,86338.0,0.01158238]
[1765817536333,0.01158158,86344.0,86340.0,0.24322303]
[1765817536648,0.23163765,86342.0,86339.0,0.24422666]
[1765817536827,0.03621,86343.0,86340.0,0.21307682]
[1765817537189,0.24321881,86342.0,86339.0,0.001]
[1765817537388,0.03621,86340.0,86339.0,0.001]
[1765817537686,0.03782287,86340.0,86339.0,0.001]
[1765817537848,0.30001839,86380.0,86339.0,0.001]
[1765817537849,0.2316118,86352.0,86348.0,0.01158104]
[1765817538047,0.01158064,86351.0,86347.0,0.23162265]
[1765817538270,0.24320192,86348.0,86344.0,0.24321119]
[1765817538492,0.01158077,86350.0,86345.0,0.01158144]
[1765817538737,0.01158117,86347.0,86344.0,0.23163114]
[1765817538889,0.00999132,86346.0,86344.0,0.22814021]
[1765817539887,0.00999132,86346.0,86343.0,0.2432142]
[1765817540099,0.00999132,86346.0,86344.0,0.23162941]
[1765817540329,0.01062036,86345.0,86344.0,0.23162941]
[1765817540582,0.23165602,86335.0,86331.0,0.24324981]
[1765817540789,0.23165602,86335.0,86326.0,0.01158399]
[1765817540790,0.01158319,86332.0,86326.0,0.01158399]
[1765817541004,0.23166966,86330.0,86327.0,0.24326067]
[1765817541205,0.01062036,86329.0,86327.0,0.24326067]
[1765817541406,0.01062036,86328.0,86327.0,0.01158386]
[1765817541612,0.01062036,86328.0,86327.0,0.09041211]
[1765817541823,0.01062036,86328.0,86327.0,0.69127439]
[1765817542023,0.01062036,86328.0,86327.0,0.67969053]
[1765817542228,0.01062036,86328.0,86327.0,0.42938211]
[1765817542450,0.01062036,86328.0,86327.0,0.09041211]
[1765817542650,0.01062036,86328.0,86327.0,0.16184983]
[1765817542871,0.01062036,86328.0,86327.0,0.68269053]
[1765817543054,0.01062036,86328.0,86327.0,0.50279211]
[1765817543342,0.01062036,86328.0,86327.0,0.10399787]
[1765817543662,0.01062036,86328.0,86327.0,0.01458386]
[1765817543864,0.01158305,86333.0,86329.0,0.01158359]
[1765817544068,0.01158251,86337.0,86330.0,0.00092533]
[1765817544269,0.01158345,86330.0,86327.0,0.006]
[1765817544600,0.01063097,86329.0,86328.0,0.23167454]
[1765817544727,0.23166038,86334.0,86331.0,0.01158332]
[1765817544934,0.24325119,86331.0,86329.0,0.002]
[1765817545151,0.01158265,86336.0,86329.0,0.002]
[1765817545152,0.0106371,86330.0,86329.0,0.23567185]
[1765817545465,0.0106371,86330.0,86329.0,0.23167185]
[1765817546089,0.0106371,86330.0,86329.0,0.35035185]
[1765817546289,0.01158104,86348.0,86343.0,0.01158171]
[1765817546491,0.01158158,86344.0,86340.0,0.01250744]
[1765817546691,0.01064932,86343.0,86342.0,0.24321866]
[1765817547298,0.01064932,86343.0,86342.0,0.36189866]
[1765817547864,0.01064932,86343.0,86342.0,0.36289866]
[1765817548059,0.01064932,86354.0,86351.0,0.01158064]
[1765817548273,0.01157943,86360.0,86342.0,0.002]
[1765817548274,0.04688,86343.0,86342.0,0.002]
[1765817548395,0.42633193,86343.0,86342.0,0.002]
[1765817548597,0.37847351,86343.0,86342.0,0.002]
[1765817548837,0.37847351,86343.0,86342.0,0.001]
[1765817549185,0.01226219,86343.0,86342.0,0.001]
[1765817549426,0.01158091,86349.0,86342.0,0.001]
[1765817549627,0.01158131,86346.0,86342.0,0.001]
[1765817549899,0.01064708,86347.0,86344.0,0.01158158]
[1765817550103,0.231633,86344.0,86342.0,0.001]
[1765817550295,0.24321322,86345.0,86342.0,0.001]
[1765817550509,0.01158158,86344.0,86341.0,0.01158198]
[1765817550655,0.01158131,86346.0,86343.0,0.01158171]
[1765817550856,0.01158131,86346.0,86341.0,0.01158198]
[1765817550857,0.01158158,86344.0,86341.0,0.24322085]
[1765817551052,0.01158158,86344.0,86340.0,0.01158211]
[1765817551053,0.01158171,86343.0,86340.0,0.24322357]
[1765817551500,0.01158158,86344.0,86341.0,0.24322098]
[1765817551709,0.01158131,86346.0,86342.0,0.24321671]
[1765817551906,0.01158117,86347.0,86343.0,0.01158171]
[1765817552066,0.24319844,86350.0,86347.0,0.2316229]
[1765817552261,0.24319844,86350.0,86345.0,0.01158144]
[1765817552262,0.25384845,86349.0,86345.0,0.01158144]
[1765817552544,0.01158131,86346.0,86342.0,0.24321828]
[1765817552816,0.24320584,86347.0,86343.0,0.01158171]
[1765817552993,0.01158117,86347.0,86343.0,0.24321545]
[1765817553198,0.01064679,86350.0,86347.0,0.01158117]
[1765817553422,0.01864,86355.0,86349.0,0.01158091]
[1765817553423,0.01158037,86353.0,86349.0,0.01158091]
[1765817553632,0.001,86350.0,86349.0,0.01158091]
[1765817553866,0.01064679,86353.0,86350.0,0.01158077]
[1765817554080,0.23161015,86352.0,86351.0,0.05211383]
[1765817554292,0.01158238,86338.0,86331.0,0.01158332]
[1765817554432,0.01158251,86337.0,86333.0,0.01158305]
[1765817554653,0.23166205,86333.0,86329.0,0.24325351]
[1765817554854,0.08322,86330.0,86325.0,0.01158412]
[1765817555193,0.03621,86330.0,86328.0,0.23167342]
[1765817555627,0.03621,86330.0,86327.0,0.2432592]
[1765817556048,0.04838251,86337.0,86332.0,0.23166151]
[1765817556252,0.0368,86337.0,86333.0,0.06023281]
[1765817556443,0.01158104,86348.0,86342.0,0.01158184]
[1765817556744,0.01864,86350.0,86345.0,0.01158144]
[1765817556965,0.01063836,86349.0,86348.0,0.23162088]
[1765817557179,0.01063836,86349.0,86348.0,0.24975038]
[1765817558060,0.01063836,86356.0,86354.0,0.23160375]
[1765817558271,0.01157903,86363.0,86357.0,0.01157983]
[1765817558272,0.03065781,86362.0,86357.0,0.01157983]
[1765817558484,0.01157903,86363.0,86354.0,0.01158023]
[1765817558485,0.01157943,86360.0,86354.0,0.01158023]
[1765817558718,0.0106341,86359.0,86354.0,0.01158023]
[1765817558933,0.0106341,86358.0,86356.0,0.01157997]
[1765817559154,0.06686781,86364.0,86361.0,0.0115793]
[1765817559370,0.01063169,86363.0,86360.0,0.24316753]
[1765817559581,0.01063169,86362.0,86360.0,0.24316753]
[1765817559802,0.01063169,86361.0,86355.0,0.0115801]
[1765817560016,0.05516906,86368.0,86358.0,0.24317318]
[1765817560017,0.01063169,86360.0,86358.0,0.24317318]
[1765817560192,0.01157889,86364.0,86360.0,0.01157943]
[1765817560395,0.01062736,86363.0,86357.0,0.01157983]
[1765817560612,0.01062736,86362.0,86358.0,0.23159358]
[1765817560821,0.002,86362.0,86360.0,0.23158844]
[1765817560986,0.01157796,86371.0,86366.0,0.01157863]
[1765817561163,0.01062736,86370.0,86367.0,0.01157849]
[1765817561375,0.03065781,86373.0,86367.0,0.01157849]
[1765817561376,0.01063305,86372.0,86370.0,0.23156188]
[1765817561720,0.01063305,86373.0,86372.0,0.23155652]
[1765817561913,0.01063305,86373.0,86370.0,0.01157809]
[1765817562152,0.01063305,86372.0,86370.0,0.24313779]
[1765817562344,0.024,86371.0,86370.0,0.00092533]
[1765817562548,0.024,86371.0,86354.0,0.03204]
[1765817562549,0.23158378,86362.0,86358.0,0.01864]
[1765817562868,0.23158378,86362.0,86350.0,0.00092533]
[1765817562869,0.0115797,86358.0,86350.0,0.00092533]
[1765817563006,0.01157956,86359.0,86352.0,0.0115805]
[1765817563192,0.01063305,86359.0,86355.0,0.23160136]
[1765817563392,0.25380456,86359.0,86355.0,0.0115801]
[1765817563596,0.01063305,86358.0,86355.0,0.24318211]
[1765817563793,0.00161287,86362.0,86359.0,0.01157956]
[1765817564102,0.01063305,86363.0,86362.0,0.23158333]
[1765817564343,0.01063305,86369.0,86366.0,0.24315113]
[1765817564548,0.06623577,86371.0,86368.0,0.23156696]
[1765817564549,0.01063305,86370.0,86368.0,0.23156696]
[1765817564789,0.01063305,86371.0,86370.0,0.23156188]
[1765817565012,0.01063305,86378.0,86374.0,0.24312566]
[1765817565271,0.03065781,86380.0,86377.0,0.23154211]
[1765817565487,0.28440023,86381.0,86377.0,0.01157715]
[1765817565707,0.01063305,86380.0,86379.0,0.23153775]
[1765817565940,0.03065781,86381.0,86380.0,0.23153507]
[1765817566155,0.01063305,86382.0,86381.0,0.23153239]
[1765817566367,0.04129086,86387.0,86385.0,0.23152167]
[1765817566572,0.01063305,86391.0,86388.0,0.1728341]
[1765817566782,0.03065781,86395.0,86392.0,0.01157514]
[1765817566994,0.03065781,86396.0,86395.0,0.23149487]
[1765817567195,0.01063305,86399.0,86397.0,0.27714951]
[1765817567403,0.01063305,86400.0,86398.0,0.25012534]
[1765817567607,0.01064011,86400.0,86399.0,0.0777]
[1765817567812,0.01064011,86400.0,86399.0,0.32075739]
[1765817568016,0.01064097,86401.0,86399.0,0.0777]
[1765817568221,0.01064097,86402.0,86399.0,0.03204]
[1765817568416,0.01064097,86402.0,86399.0,0.27509625]
[1765817568735,0.02221464,86403.0,86400.0,0.05367965]
[1765817569145,0.01064097,86403.0,86401.0,0.2314788]
[1765817569397,0.01064097,86403.0,86401.0,0.24305274]
[1765817569569,0.23147612,86402.0,86400.0,0.05367965]
[1765817569740,0.01064097,86401.0,86400.0,0.05367965]
[1765817569936,0.23147733,86402.0,86400.0,0.05367965]
[1765817570178,0.01157353,86404.0,86401.0,0.01309961]
[1765817570336,0.25368079,86404.0,86401.0,0.01309961]
[1765817570539,0.01063453,86403.0,86401.0,0.01309961]
[1765817570739,0.01063453,86404.0,86401.0,0.02467355]
[1765817571042,0.03061974,86402.0,86401.0,0.01309961]
[1765817571243,0.03061974,86402.0,86400.0,0.001]
[1765817571679,0.04218679,86407.0,86402.0,0.0115738]
[1765817571899,0.0368,86419.0,86416.0,0.01157193]
[1765817572126,0.30227072,86425.0,86421.0,0.01157126]
[1765817572360,0.30227072,86425.0,86414.0,0.2314434]
[1765817572361,0.01157139,86420.0,86415.0,0.01157206]
[1765817572560,0.01157126,86421.0,86416.0,0.01157193]
[1765817572800,0.01157179,86417.0,86413.0,0.01157233]
[1765817572998,0.05774983,86431.0,86408.0,0.041746]
[1765817572999,0.01156938,86435.0,86423.0,0.01157099]
[1765817573194,0.01156938,86435.0,86427.0,0.2429788]
[1765817573195,0.01156992,86431.0,86427.0,0.2429788]
[1765817573402,0.24297264,86430.0,86426.0,0.01157059]
[1765817573622,0.0368,86437.0,86428.0,0.01157032]
[1765817573898,0.23139634,86432.0,86428.0,0.23140551]
[1765817574160,0.01156965,86433.0,86429.0,0.01157019]
[1765817574299,0.0004,86434.0,86431.0,0.242968]
[1765817574498,0.0004,86434.0,86432.0,0.23139416]
[1765817574759,0.0004,86434.0,86431.0,0.242968]
[1765817574760,0.0004,86434.0,86433.0,0.01279563]
[1765817575545,0.0034,86434.0,86433.0,0.01279563]
[1765817575905,0.0004,86434.0,86433.0,0.01279563]
[1765817576760,0.0004,86434.0,86429.0,0.01157019]
[1765817576761,0.01156965,86433.0,86430.0,0.01157005]
[1765817576998,0.0004,86434.0,86431.0,0.01156992]
[1765817577172,0.0004,86434.0,86431.0,0.24296784]
[1765817577405,0.0004,86434.0,86433.0,0.04566]
[1765817577556,0.0004,86434.0,86433.0,0.15690003]
[1765817577781,0.0004,86434.0,86433.0,0.2313931]
[1765817577933,0.0004,86434.0,86433.0,0.2770531]
[1765817578130,0.0004,86434.0,86433.0,0.50869152]
[1765817578329,0.0004,86466.0,86451.0,0.23134492]
[1765817578611,0.01196537,86465.0,86451.0,0.39945492]
[1765817578816,0.0004,86465.0,86451.0,0.50709421]
[1765817578967,0.0004,86465.0,86451.0,0.51069495]
[1765817579725,0.0004,86465.0,86451.0,0.56071334]
[1765817580713,0.0004,86465.0,86455.0,0.43825264]
[1765817580714,0.26667114,86456.0,86455.0,0.43825264]
[1765817580918,0.0004,86465.0,86464.0,0.68326856]
[1765817581126,0.0004,86465.0,86464.0,0.59062853]
[1765817581335,0.0004,86484.0,86483.0,0.39251774]
[1765817581537,0.0004,86484.0,86483.0,0.70181774]
[1765817581954,0.0004,86506.0,86485.0,0.23125397]
[1765817582160,0.0004,86506.0,86485.0,0.68321239]
[1765817583241,0.0004,86506.0,86501.0,0.68316961]
[1765817583412,0.0004,86506.0,86501.0,0.70176961]
[1765817584288,0.0004,86506.0,86501.0,0.59152958]
[1765817584627,0.0004,86506.0,86501.0,0.70276961]
[1765817584829,0.0004,86506.0,86501.0,0.60152419]
[1765817585031,0.0004,86506.0,86501.0,0.60552419]
[1765817585346,0.0004,86506.0,86501.0,0.58692419]
[1765817585552,0.0004,86506.0,86501.0,0.29622419]
[1765817585750,0.0004,86506.0,86501.0,0.2462058]
[1765817585912,0.01156015,86504.0,86501.0,0.2452058]
[1765817586111,0.01052589,86505.0,86501.0,0.23821119]
[1765817586334,0.00201287,86502.0,86501.0,0.23421119]
[1765817586604,0.00201287,86502.0,86501.0,0.003]
[1765817586735,0.00201287,86502.0,86498.0,0.01156096]
[1765817586939,0.00201287,86502.0,86501.0,0.001]
[1765817587163,0.0004,86502.0,86501.0,0.001]
[1765817587579,0.0004,86502.0,86500.0,0.23121277]
[1765817587726,0.00201287,86502.0,86501.0,0.003]
[1765817587933,0.00201287,86502.0,86490.0,0.12280206]
[1765817587934,0.01156122,86496.0,86490.0,0.12280206]
[1765817588152,0.01156189,86491.0,86485.0,0.0186]
[1765817588347,0.24279589,86493.0,86489.0,0.01156216]
[1765817588561,0.00161287,86496.0,86494.0,0.23122905]
[1765817589212,0.00161287,86496.0,86491.0,0.01156189]
[1765817589213,0.2312309,86494.0,86491.0,0.01156189]
[1765817589413,0.00161287,86494.0,86491.0,0.01156189]
[1765817589618,0.00161287,86494.0,86493.0,0.23123258]
[1765817590048,0.01156176,86492.0,86489.0,0.002]
[1765817590195,0.23123877,86491.0,86489.0,0.002]
[1765817590426,0.11558,86490.0,86489.0,0.002]
[1765817590582,0.0115643,86473.0,86469.0,0.0186]
[1765817590779,0.0115639,86476.0,86473.0,0.23128533]
[1765817590780,0.24284265,86476.0,86473.0,0.23128533]
[1765817590978,0.01156376,86477.0,86463.0,0.11124003]
[1765817590979,0.23130746,86465.0,86463.0,0.11124003]
[1765817591198,0.23130746,86465.0,86457.0,0.01156644]
[1765817591199,0.0115655,86464.0,86459.0,0.23132351]
[1765817591398,0.0115655,86464.0,86461.0,0.23131694]
[1765817591606,0.06758,86476.0,86458.0,0.0115663]
[1765817591607,0.01156363,86478.0,86474.0,0.01156416]
[1765817591826,0.01156403,86475.0,86471.0,0.01156457]
[1765817592034,0.01156243,86487.0,86481.0,0.01156323]
[1765817592234,0.25099999,86520.0,86480.0,0.00092533]
[1765817592235,0.27857381,86490.0,86486.0,0.01156256]
[1765817592414,0.23124595,86488.0,86482.0,0.2312606]
[1765817592848,0.04077,86490.0,86485.0,0.01156269]
[1765817593053,0.005,86490.0,86488.0,0.2312451]
[1765817593229,0.00161287,86494.0,86491.0,0.01156189]
[1765817593430,0.00161287,86494.0,86492.0,0.23123366]
[1765817593638,0.04055121,86506.0,86499.0,0.01156082]
[1765817593639,0.24276753,86503.0,86499.0,0.01156082]
[1765817594019,0.01156015,86504.0,86500.0,0.23121387]
[1765817594252,0.01156122,86496.0,86493.0,0.01156162]
[1765817594450,0.004,86494.0,86493.0,0.01156162]
[1765817594993,0.004,86494.0,86483.0,0.01156296]
[1765817594994,0.01156229,86488.0,86483.0,0.01156296]
[1765817595209,0.01156229,86488.0,86481.0,0.01156323]
[1765817595410,0.01156229,86488.0,86480.0,0.23219071]
[1765817595411,0.01156229,86488.0,86482.0,0.01156309]
[1765817595657,0.01156269,86485.0,86482.0,0.24282421]
[1765817595851,0.01156269,86485.0,86481.0,0.24282594]
[1765817595852,0.23126229,86483.0,86480.0,0.00092533]
[1765817596057,0.01156203,86490.0,86485.0,0.01156269]
[1765817596198,0.01156229,86488.0,86485.0,0.23125285]
[1765817596411,0.06898,86502.0,86480.0,0.00092533]
[1765817596412,0.01156136,86495.0,86491.0,0.24279964]
[1765817596639,0.01196042,86502.0,86495.0,0.01156136]
[1765817596856,0.01156203,86490.0,86480.0,0.00092533]
[1765817597065,0.01156309,86482.0,86476.0,0.0115639]
[1765817597285,0.00161287,86490.0,86480.0,0.23219192]
[1765817597286,0.01156243,86487.0,86480.0,0.23219192]
[1765817597502,0.01156296,86483.0,86480.0,0.01156336]
[1765817597710,0.0186,86494.0,86473.0,0.0115643]
[1765817597983,0.0115651,86467.0,86460.0,0.11124003]
[1765817598206,0.03577,86471.0,86451.0,0.03347]
[1765817598207,0.242896,86457.0,86453.0,0.26150581]
[1765817598430,0.0115655,86464.0,86460.0,0.2428864]
[1765817598653,0.0115663,86458.0,86453.0,0.02021287]
[1765817599071,0.01156724,86451.0,86447.0,0.24292295]
[1765817599306,0.2313732,86441.0,86431.0,0.01156992]
[1765817599475,0.01156938,86435.0,86430.0,0.24296979]
[1765817599631,0.23138212,86438.0,86425.0,0.0186]
[1765817599831,0.0186,86452.0,86436.0,0.01156925]
[1765817599832,0.24994492,86452.0,86436.0,0.01156925]
[1765817600172,0.01156898,86438.0,86434.0,0.24295919]
[1765817600373,0.24294679,86439.0,86435.0,0.24295535]
[1765817600627,0.01156885,86439.0,86435.0,0.01156938]
[1765817600849,0.01156791,86446.0,86441.0,0.24293956]
[1765817601056,0.23138254,86437.0,86435.0,0.00161287]
[1765817601387,0.29896254,86437.0,86435.0,0.00361287]
[1765817601648,0.06758,86437.0,86435.0,0.00361287]
[1765817601858,0.2313701,86442.0,86440.0,0.00092533]
[1765817602062,0.048,86436.0,86435.0,0.00161287]
[1765817602411,0.11558,86436.0,86435.0,0.00261287]
[1765817602912,0.11558,86436.0,86435.0,0.00161287]
[1765817603114,0.11558,86436.0,86419.0,0.2314281]
[1765817603115,0.24296422,86433.0,86428.0,0.01157032]
[1765817603363,0.25354116,86432.0,86428.0,0.01157032]
[1765817603554,0.01057395,86431.0,86428.0,0.24297516]
[1765817603748,0.01057395,86430.0,86429.0,0.23140212]
[1765817603948,0.01057395,86430.0,86429.0,0.23301499]
[1765817604156,0.01156778,86447.0,86443.0,0.01156831]
[1765817604360,0.01057395,86446.0,86444.0,0.24293075]
[1765817604642,0.05317242,86494.0,86444.0,0.24293075]
[1765817604643,0.01057395,86445.0,86444.0,0.58364914]
[1765817604855,0.01057395,86447.0,86446.0,0.68331672]
[1765817605142,0.01057395,86447.0,86446.0,0.68492959]
[1765817605340,0.03577,86496.0,86490.0,0.00092533]
[1765817605513,0.0186,86497.0,86494.0,0.24279016]
[1765817605754,0.01156029,86503.0,86498.0,0.23121697]
[1765817606030,0.01156029,86503.0,86493.0,0.01156162]
[1765817606031,0.01156122,86496.0,86488.0,0.01156229]
[1765817606380,0.01156176,86492.0,86487.0,0.01156243]
[1765817606582,0.23124703,86488.0,86483.0,0.23125795]
[1765817606818,0.01156176,86492.0,86488.0,0.01156229]
[1765817607001,0.01156176,86492.0,86487.0,0.01156243]
[1765817607002,0.01156189,86491.0,86487.0,0.01156243]
[1765817607407,0.01156189,86491.0,86482.0,0.24914952]
[1765817607408,0.01156269,86485.0,86482.0,0.01789]
[1765817607614,0.01156323,86481.0,86476.0,0.26143995]
[1765817607813,0.02437467,86490.0,86483.0,0.01156296]
[1765817608019,0.01156189,86491.0,86487.0,0.01156243]
[1765817608247,0.01156189,86491.0,86486.0,0.01156256]
[1765817608446,0.01156189,86491.0,86482.0,0.01156309]
[1765817608447,0.01156216,86489.0,86482.0,0.01156309]
[1765817608672,0.01156216,86489.0,86476.0,0.0186]
[1765817608673,0.23125534,86485.0,86479.0,0.0115635]
[1765817608879,0.24481043,86488.0,86483.0,0.01156296]
[1765817609000,0.01156363,86478.0,86474.0,0.03106703]
[1765817609202,0.01156336,86480.0,86475.0,0.01156403]
[1765817609612,0.00999132,86494.0,86485.0,0.23125196]
[1765817609854,0.01156229,86488.0,86485.0,0.24281465]
[1765817610029,0.01156189,86491.0,86488.0,0.01156229]
[1765817610231,0.24278969,86495.0,86491.0,0.24279982]
[1765817610437,0.03016122,86496.0,86491.0,0.24279982]
[1765817610438,0.01156122,86496.0,86492.0,0.24279626]
[1765817610904,0.01156136,86495.0,86492.0,0.01156176]
[1765817611309,0.01156136,86495.0,86492.0,0.24279627]
[1765817611537,0.02437467,86499.0,86498.0,0.01156096]
[1765817611681,0.02437467,86499.0,86493.0,0.02312325]
[1765817611682,0.23122886,86495.0,86490.0,0.00092533]
[1765817611882,0.001,86504.0,86491.0,0.01156189]
[1765817611883,0.23122083,86498.0,86491.0,0.01156189]
[1765817612226,0.2312383,86491.0,86487.0,0.2312475]
[1765817612401,0.01156162,86493.0,86490.0,0.23123895]
[1765817612609,0.01156122,86496.0,86491.0,0.24279926]
[1765817612956,0.24276252,86505.0,86500.0,0.23121334]
[1765817613161,0.24276718,86503.0,86499.0,0.01156082]
[1765817613323,0.23220442,86504.0,86500.0,0.23121347]
[1765817613686,0.01196042,86502.0,86499.0,0.24277708]
[1765817613886,0.0004,86502.0,86501.0,0.06636]
[1765817614158,0.0004,86502.0,86501.0,0.01789]
[1765817614521,0.01156055,86501.0,86499.0,0.23121613]
[1765817614742,0.0004,86502.0,86499.0,0.24277695]
[1765817614941,0.0004,86502.0,86500.0,0.23121346]
[1765817615527,0.01156096,86498.0,86492.0,0.01156176]
[1765817615751,0.0024,86502.0,86490.0,0.00092533]
[1765817615752,0.0024,86502.0,86501.0,0.27968119]
[1765817615959,0.0024,86502.0,86496.0,0.24278405]
[1765817615960,0.23121693,86499.0,86496.0,0.24278405]
[1765817616161,0.01156069,86500.0,86497.0,0.23122078]
[1765817616399,0.0004,86502.0,86497.0,0.23122078]
[1765817616400,0.01156055,86501.0,86498.0,0.23121895]
[1765817616614,0.01156082,86499.0,86494.0,0.00161287]
[1765817616851,0.01156189,86491.0,86487.0,0.01789]
[1765817617003,0.23124391,86489.0,86487.0,0.01789]
[1765817617218,0.01156296,86483.0,86481.0,0.01789]
[1765817617380,0.01061265,86482.0,86481.0,0.01789]
[1765817617823,0.23127837,86476.0,86474.0,0.01789]
[1765817618030,0.24279926,86492.0,86490.0,0.00092533]
[1765817618244,0.24185554,86491.0,86490.0,0.00092533]
[1765817618407,0.24185554,86491.0,86485.0,0.01156269]
[1765817618408,0.24280494,86490.0,86486.0,0.01156256]
[1765817618614,0.23124607,86488.0,86484.0,0.24281874]
[1765817618870,0.24281983,86484.0,86481.0,0.01789]
[1765817619109,0.01061516,86483.0,86482.0,0.23126106]
[1765817619292,0.07562161,86488.0,86485.0,0.23125381]
[1765817619603,0.24281199,86487.0,86484.0,0.24281849]
[1765817619782,0.24281199,86487.0,86479.0,0.0115635]
[1765817619783,0.24281199,86487.0,86433.0,0.11124003]
[1765817619784,4.7516227,86434.0,86433.0,0.11124003]
[1765817620012,4.57015481,86434.0,86433.0,0.11124003]
[1765817620288,2.32673822,86408.0,86407.0,0.11124002]
[1765817620435,1.52981797,86408.0,86407.0,0.38731614]
[1765817620633,1.06906967,86408.0,86407.0,0.37605057]
[1765817620841,0.0186,86434.0,86423.0,0.01157099]
[1765817621089,0.0186,86434.0,86424.0,0.76926249]
[1765817621308,0.0186,86440.0,86426.0,0.01157059]
[1765817621495,0.0186,86440.0,86425.0,0.24298524]
[1765817621496,0.0186,86440.0,86439.0,0.11124002]
[1765817621695,0.0186,86445.0,86444.0,0.00999461]
[1765817622142,0.0186,86445.0,86444.0,0.03313097]
[1765817622311,7e-05,86455.0,86454.0,0.00999461]
[1765817622523,7e-05,86455.0,86452.0,0.08520881]
[1765817622524,0.0186,86455.0,86452.0,0.08520881]
[1765817622733,0.0186,86455.0,86453.0,0.02313395]
[1765817622885,0.0186,86455.0,86454.0,0.11124002]
[1765817623090,1.6e-07,86458.0,86457.0,0.11124002]
[1765817623289,1.6e-07,86458.0,86457.0,0.1343729]
[1765817623290,0.01860016,86458.0,86457.0,0.1343729]
[1765817623978,0.01860016,86458.0,86457.0,0.0431221]
[1765817624373,0.01860016,86458.0,86457.0,0.03223178]
[1765817624616,0.21860016,86458.0,86457.0,0.01998922]
[1765817625083,0.21860016,86458.0,86457.0,0.02298922]
[1765817625280,0.15894986,86458.0,86457.0,0.02498922]
[1765817625508,0.16056273,86458.0,86457.0,0.005]
[1765817625828,0.16056273,86458.0,86441.0,0.02942359]
[1765817625829,0.16056273,86458.0,86445.0,0.11124003]
[1765817626034,0.23132886,86457.0,86446.0,0.02313582]
[1765817626241,0.00161287,86457.0,86421.0,0.42949692]
[1765817626573,0.00161287,86457.0,86431.0,0.2907]
[1765817626574,0.25566657,86456.0,86431.0,0.2907]
[1765817626777,0.26431287,86456.0,86447.0,0.00999461]
[1765817626981,0.26431287,86456.0,86446.0,0.11124003]
[1765817627195,0.26431287,86456.0,86455.0,0.11124003]
[1765817627388,0.26431287,86456.0,86447.0,0.01924279]
[1765817627588,0.26431287,86456.0,86447.0,0.11124003]
[1765817628413,0.23135108,86449.0,86447.0,0.11124003]
[1765817628616,0.23138746,86436.0,86433.0,0.11124003]
[1765817628890,0.01156885,86439.0,86400.0,1.00063672]
[1765817628891,0.00161287,86434.0,86421.0,0.11124003]
[1765817629094,0.01156965,86433.0,86422.0,0.0186042]
[1765817629309,0.00161287,86434.0,86422.0,0.0186042]
[1765817629310,0.01157032,86428.0,86422.0,0.0186042]
[1765817629532,0.00299998,86430.0,86417.0,0.11124003]
[1765817629751,0.2,86423.0,86422.0,0.11124003]